fUSD/lending_fUSD_20240803
["ID","MTS","AMOUNT","RATE_DAILY","PERIOD"]
[333957104,1722648645906,-500.0,0.00016438,2]
[333957106,1722648645915,-500.0,0.00016438,2]
[333957108,1722648645925,-500.0,0.00016438,2]
[333957110,1722648645942,-544.63,0.00016438,2]
[333957111,1722648645952,-500.0,0.00016438,2]
[333957113,1722648645961,-895.54,0.00016438,2]
[333957115,1722648645971,-1078.1,0.00016438,2]
[333957117,1722648645980,-509.48,0.00016438,2]
[333957119,1722648645995,-688.64,0.00016438,2]
[333957121,1722648646004,-578.39,0.00016438,2]
[333957123,1722648646014,-500.0,0.00016438,2]
[333957125,1722648646023,-719.23,0.00016438,2]
[333957127,1722648646032,-500.0,0.00016438,2]
[333957129,1722648646043,-607.65,0.00016438,2]
[333957131,1722648646052,-500.0,0.00016438,2]
[333957133,1722648646061,-500.0,0.00016438,2]
[333957135,1722648646072,-500.0,0.00016438,2]
[333957137,1722648646081,-500.0,0.00016438,2]
[333957139,1722648646091,-500.0,0.00016438,2]
[333957141,1722648646101,-500.0,0.00016438,2]
[333957143,1722648646110,-500.0,0.00016438,2]
[333957145,1722648646120,-513.68,0.00016438,2]
[333957147,1722648646129,-500.0,0.00016438,2]
[333957149,1722648646139,-746.35,0.00016438,2]
[333957151,1722648646148,-1229.45,0.00016438,2]
[333957153,1722648646157,-500.0,0.00016438,2]
[333957155,1722648646168,-500.0,0.00016438,2]
[333957157,1722648646185,-500.0,0.00016438,2]
[333957159,1722648646195,-500.0,0.00016438,2]
[333957161,1722648646204,-1025.18,0.00016438,2]
[333957163,1722648646215,-500.0,0.00016438,2]
[333957165,1722648646224,-738.74,0.00016438,2]
[333957167,1722648646233,-500.0,0.00016438,2]
[333957169,1722648646243,-659.98,0.00016438,2]
[333957171,1722648646252,-500.0,0.00016438,2]
[333957173,1722648646263,-500.0,0.00016438,2]
[333957175,1722648646272,-506.64,0.00016438,2]
[333957177,1722648646283,-500.0,0.00016438,2]
[333957179,1722648646292,-500.0,0.00016438,2]
[333957181,1722648646302,-500.0,0.00016438,2]
[333957183,1722648646312,-500.0,0.00016438,2]
[333957185,1722648646321,-500.0,0.00016438,2]
[333957187,1722648646331,-500.0,0.00016438,2]
[333957189,1722648646341,-500.0,0.00016438,2]
[333957191,1722648646350,-500.0,0.00016438,2]
[333957193,1722648646360,-819.03,0.00016438,2]
[333957195,1722648646370,-400.0,0.00016438,2]
[333957197,1722648646379,-500.0,0.00016438,2]
[333957199,1722648646389,-1140.3,0.00016438,2]
[333957201,1722648646399,-500.0,0.00016438,2]
[333957203,1722648646408,-500.0,0.00016438,2]
[333957205,1722648646417,-512.56,0.00016438,2]
[333957207,1722648646429,-694.94,0.00016438,2]
[333957209,1722648646438,-855.97,0.00016438,2]
[333957211,1722648646448,-1051.12,0.00016438,2]
[333957213,1722648646457,-985.86,0.00016438,2]
[333957215,1722648646467,-500.0,0.00016438,2]
[333957217,1722648646477,-580.25,0.00016438,2]
[333957219,1722648646487,-500.0,0.00016438,2]
[333957221,1722648646497,-500.0,0.00016438,2]
[333957223,1722648646506,-500.0,0.00016438,2]
[333957225,1722648646517,-500.0,0.00016438,2]
[333957226,1722648646527,-877.71,0.00016438,2]
[333957228,1722648646536,-500.0,0.00016438,2]
[333957230,1722648646546,-500.0,0.00016438,2]
[333957232,1722648646556,-761.97,0.00016438,2]
[333957235,1722648646567,-810.84,0.00016438,2]
[333957237,1722648646577,-860.35,0.00016438,2]
[333957239,1722648646587,-500.0,0.00016438,2]
[333957241,1722648646597,-966.51,0.00016438,2]
[333957243,1722648646607,-500.0,0.00016438,2]
[333957245,1722648646616,-500.0,0.00016438,2]
[333957247,1722648646626,-500.0,0.00016438,2]
[333957249,1722648646636,-500.0,0.00016438,2]
[333957251,1722648646646,-509.67,0.00016438,2]
[333957253,1722648646656,-500.0,0.00016438,2]
[333957256,1722648646665,-1543.57,0.00016438,2]
[333957261,1722648646679,-500.0,0.00016438,2]
[333957264,1722648646689,-500.0,0.00016438,2]
[333957268,1722648646698,-804.49,0.00016438,2]
[333957271,1722648646707,-629.7,0.00016438,2]
[333957275,1722648646717,-500.0,0.00016438,2]
[333957279,1722648646726,-500.0,0.00016438,2]
[333957283,1722648646736,-500.0,0.00016438,2]
[333957288,1722648646746,-510.96,0.00016438,2]
[333957292,1722648646756,-500.0,0.00016438,2]
[333957296,1722648646767,-558.03,0.00016438,2]
[333957300,1722648646776,-500.0,0.00016438,2]
[333957304,1722648646786,-710.45,0.00016438,2]
[333957308,1722648646796,-500.0,0.00016438,2]
[333957312,1722648646806,-500.0,0.00016438,2]
[333957316,1722648646815,-500.0,0.00016438,2]
[333957319,1722648646825,-1395.2,0.00016438,2]
[333957323,1722648646835,-500.0,0.00016438,2]
[333957326,1722648646844,-500.0,0.00016438,2]
[333957329,1722648646854,-500.0,0.00016438,2]
[333957332,1722648646864,-801.14,0.00016438,2]
[333957335,1722648646874,-500.0,0.00016438,2]
[333957337,1722648646883,-431.86715068,0.00016438,2]
[333957339,1722648646893,-1164.79,0.00016438,2]
[333957341,1722648646903,-571.21,0.00016438,2]
[333957343,1722648646912,-500.0,0.00016438,2]
[333957345,1722648646922,-689.7,0.00016438,2]
[333957347,1722648646936,-500.0,0.00016438,2]
[333957350,1722648646946,-622.28,0.00016438,2]
[333957352,1722648646956,-500.0,0.00016438,2]
[333957353,1722648646966,-545.61,0.00016438,2]
[333957356,1722648646976,-500.0,0.00016438,2]
[333957357,1722648646987,-532.18,0.00016438,2]
[333957359,1722648646999,-512.51107324,0.00016438,2]
[333957361,1722648647008,-500.0,0.00016438,2]
[333957363,1722648647018,-768.74,0.00016438,2]
[333957365,1722648647028,-500.0,0.00016438,2]
[333957367,1722648647038,-940.42,0.00016438,2]
[333957369,1722648647048,-589.36,0.00016438,2]
[333957371,1722648647058,-500.0,0.00016438,2]
[333957373,1722648647068,-265.88844014,0.00016438,2]
[333957374,1722648647081,-500.0,0.00016438,2]
[333957375,1722648647092,-500.0,0.00016438,2]
[333957376,1722648647102,-656.87,0.00016438,2]
[333957377,1722648647112,-535.54,0.00016438,2]
[333957378,1722648647122,-1150.68,0.00016438,2]
[333957379,1722648647133,-500.0,0.00016438,2]
[333957380,1722648647143,-690.01,0.00016438,2]
[333957381,1722648647152,-500.0,0.00016438,2]
[333957382,1722648647162,-939.8,0.00016438,2]
[333957383,1722648647174,-500.0,0.00016438,2]
[333957384,1722648647186,-500.0,0.00016438,2]
[333957385,1722648647197,-1180.71,0.00016438,2]
[333957386,1722648647207,-500.0,0.00016438,2]
[333957387,1722648647217,-605.6,0.00016438,2]
[333957388,1722648647227,-500.0,0.00016438,2]
[333957389,1722648647237,-500.0,0.00016438,2]
[333957390,1722648647247,-522.34,0.00016438,2]
[333957391,1722648647256,-681.35,0.00016438,2]
[333957392,1722648647266,-520.71,0.00016438,2]
[333957393,1722648647275,-500.0,0.00016438,2]
[333957394,1722648647285,-979.72,0.00016438,2]
[333957395,1722648647295,-500.0,0.00016438,2]
[333957396,1722648647307,-527.8,0.00016438,2]
[333957397,1722648647316,-546.47,0.00016438,2]
[333957398,1722648647327,-500.0,0.00016438,2]
[333957399,1722648647338,-500.0,0.00016438,2]
[333957400,1722648647348,-500.0,0.00016438,2]
[333957401,1722648647359,-1327.37,0.00016438,2]
[333957402,1722648647368,-1150.52,0.00016438,2]
[333957403,1722648647378,-500.0,0.00016438,2]
[333957404,1722648647388,-685.25,0.00016438,2]
[333957405,1722648647398,-500.0,0.00016438,2]
[333957406,1722648647408,-500.0,0.00016438,2]
[333957407,1722648647418,-500.0,0.00016438,2]
[333957408,1722648647431,-500.0,0.00016438,2]
[333957409,1722648647441,-730.99,0.00016438,2]
[333957410,1722648647450,-1566.62,0.00016438,2]
[333957411,1722648647461,-500.0,0.00016438,2]
[333957412,1722648647471,-500.0,0.00016438,2]
[333957413,1722648647481,-500.0,0.00016438,2]
[333957414,1722648647491,-500.0,0.00016438,2]
[333957415,1722648647501,-500.0,0.00016438,2]
[333957416,1722648647511,-519.59,0.00016438,2]
[333957417,1722648647521,-693.96,0.00016438,2]
[333957418,1722648647531,-500.0,0.00016438,2]
[333957419,1722648647541,-500.0,0.00016438,2]
[333957420,1722648647551,-500.0,0.00016438,2]
[333957421,1722648647560,-500.0,0.00016438,2]
[333957422,1722648647570,-680.85,0.00016438,2]
[333957423,1722648647580,-639.29,0.00016438,2]
[333957424,1722648647591,-1190.33,0.00016438,2]
[333957425,1722648647601,-500.0,0.00016438,2]
[333957426,1722648647611,-500.0,0.00016438,2]
[333957427,1722648647621,-1005.39,0.00016438,2]
[333957428,1722648647630,-500.0,0.00016438,2]
[333957429,1722648647640,-1473.21,0.00016438,2]
[333957430,1722648647649,-1079.01,0.00016438,2]
[333957431,1722648647659,-500.0,0.00016438,2]
[333957432,1722648647669,-572.79,0.00016438,2]
[333957433,1722648647682,-2034.65,0.00016438,2]
[333957434,1722648647691,-500.0,0.00016438,2]
[333957435,1722648647701,-500.0,0.00016438,2]
[333957436,1722648647711,-500.0,0.00016438,2]
[333957437,1722648647721,-500.0,0.00016438,2]
[333957438,1722648647731,-500.0,0.00016438,2]
[333957439,1722648647740,-500.0,0.00016438,2]
[333957440,1722648647750,-500.0,0.00016438,2]
[333957441,1722648647760,-734.63,0.00016438,2]
[333957442,1722648647770,-500.0,0.00016438,2]
[333957443,1722648647781,-1135.57,0.00016438,2]
[333957444,1722648647791,-891.47,0.00016438,2]
[333957445,1722648647801,-633.67,0.00016438,2]
[333957446,1722648647812,-1074.41,0.00016438,2]
[333957447,1722648647821,-500.0,0.00016438,2]
[333957448,1722648647831,-670.6,0.00016438,2]
[333957449,1722648647842,-500.0,0.00016438,2]
[333957450,1722648647852,-522.09,0.00016438,2]
[333957451,1722648647862,-500.0,0.00016438,2]
[333957452,1722648647872,-500.0,0.00016438,2]
[333957453,1722648647882,-500.0,0.00016438,2]
[333957454,1722648647892,-731.31,0.00016438,2]
[333957455,1722648647902,-500.0,0.00016438,2]
[333957456,1722648647912,-500.0,0.00016438,2]
[333957457,1722648647921,-500.0,0.00016438,2]
[333957458,1722648647935,-500.0,0.00016438,2]
[333957459,1722648647944,-841.49,0.00016438,2]
[333957460,1722648647954,-500.0,0.00016438,2]
[333957461,1722648647964,-500.0,0.00016438,2]
[333957462,1722648647974,-525.82,0.00016438,2]
[333957463,1722648647984,-500.0,0.00016438,2]
[333957464,1722648647998,-1441.66,0.00016438,2]
[333957465,1722648648008,-500.0,0.00016438,2]
[333957466,1722648648017,-500.0,0.00016438,2]
[333957467,1722648648027,-500.0,0.00016438,2]
[333957468,1722648648037,-500.0,0.00016438,2]
[333957469,1722648648047,-1566.04,0.00016438,2]
[333957470,1722648648057,-1157.56,0.00016438,2]
[333957471,1722648648066,-500.0,0.00016438,2]
[333957472,1722648648079,-572.28,0.00016438,2]
[333957473,1722648648090,-500.0,0.00016438,2]
[333957474,1722648648100,-1247.06,0.00016438,2]
[333957475,1722648648110,-200.0,0.00016438,2]
[333957476,1722648648120,-830.67,0.00016438,2]
[333957486,1722648648550,-868.31,0.00016438,2]
[333957488,1722648648561,-1636.97,0.00016438,2]
[333957490,1722648648571,-1926.89,0.00016438,2]
[333957492,1722648648581,-500.0,0.00016438,2]
[333957494,1722648648591,-500.0,0.00016438,2]
[333957496,1722648648601,-565.74,0.00016438,2]
[333957498,1722648648611,-579.54,0.00016438,2]
[333957500,1722648648621,-500.0,0.00016438,2]
[333957503,1722648648631,-624.77,0.00016438,2]
[333957505,1722648648641,-2372.91,0.00016438,2]
[333957507,1722648648651,-1000.0,0.00016438,2]
[333957509,1722648648661,-665.29,0.00016438,2]
[333957510,1722648648671,-1817.41,0.00016438,2]
[333957511,1722648648686,-596.75,0.00016438,2]
[333957512,1722648648701,-500.0,0.00016438,2]
[333957513,1722648648711,-1197.3,0.00016438,2]
[333957514,1722648648722,-500.0,0.00016438,2]
[333957515,1722648648732,-1009.5,0.00016438,2]
[333957516,1722648648742,-500.0,0.00016438,2]
[333957517,1722648648752,-500.0,0.00016438,2]
[333957518,1722648648762,-2324.17,0.00016438,2]
[333957519,1722648648772,-1883.75,0.00016438,2]
[333957520,1722648648782,-326.98468688,0.00016438,2]
[333957521,1722648648792,-546.03,0.00016438,2]
[333957522,1722648648802,-664.47,0.00016438,2]
[333957523,1722648648813,-935.34,0.00016438,2]
[333957524,1722648648823,-500.0,0.00016438,2]
[333957525,1722648648833,-732.42,0.00016438,2]
[333957526,1722648648842,-500.0,0.00016438,2]
[333957527,1722648648852,-1638.55,0.00016438,2]
[333957528,1722648648862,-556.61,0.00016438,2]
[333957529,1722648648871,-500.0,0.00016438,2]
[333957530,1722648648880,-1376.42,0.00016438,2]
[333957531,1722648648890,-532.85,0.00016438,2]
[333957532,1722648648900,-500.0,0.00016438,2]
[333957533,1722648648911,-500.0,0.00016438,2]
[333957534,1722648648921,-580.92,0.00016438,2]
[333957535,1722648648934,-844.41,0.00016438,2]
[333957536,1722648648944,-537.05,0.00016438,2]
[333957537,1722648648955,-500.0,0.00016438,2]
[333957538,1722648648965,-640.67,0.00016438,2]
[333957539,1722648648975,-500.0,0.00016438,2]
[333957540,1722648648985,-500.0,0.00016438,2]
[333957541,1722648648997,-614.23,0.00016438,2]
[333957542,1722648649008,-624.71,0.00016438,2]
[333957543,1722648649018,-500.0,0.00016438,2]
[333957544,1722648649029,-500.0,0.00016438,2]
[333957545,1722648649039,-1278.32,0.00016438,2]
[333957546,1722648649050,-500.0,0.00016438,2]
[333957547,1722648649060,-500.0,0.00016438,2]
[333957548,1722648649071,-946.83,0.00016438,2]
[333957549,1722648649082,-500.0,0.00016438,2]
[333957550,1722648649094,-500.0,0.00016438,2]
[333957551,1722648649104,-500.0,0.00016438,2]
[333957552,1722648649114,-891.98,0.00016438,2]
[333957553,1722648649125,-983.29,0.00016438,2]
[333957554,1722648649135,-956.14,0.00016438,2]
[333957555,1722648649145,-1955.41,0.00016438,2]
[333957556,1722648649156,-500.0,0.00016438,2]
[333957557,1722648649166,-1565.46,0.00016438,2]
[333957558,1722648649180,-1574.55,0.00016438,2]
[333957559,1722648649190,-500.0,0.00016438,2]
[333957560,1722648649200,-500.0,0.00016438,2]
[333957561,1722648649210,-500.0,0.00016438,2]
[333957562,1722648649221,-523.26,0.00016438,2]
[333957563,1722648649232,-500.0,0.00016438,2]
[333957564,1722648649241,-811.89,0.00016438,2]
[333957565,1722648649252,-2218.68,0.00016438,2]
[333957566,1722648649263,-500.0,0.00016438,2]
[333957567,1722648649273,-500.0,0.00016438,2]
[333957568,1722648649283,-500.0,0.00016438,2]
[333957569,1722648649292,-500.0,0.00016438,2]
[333957570,1722648649304,-741.59,0.00016438,2]
[333957571,1722648649314,-532.88,0.00016438,2]
[333957572,1722648649324,-1554.73,0.00016438,2]
[333957573,1722648649334,-500.0,0.00016438,2]
[333957574,1722648649343,-539.64,0.00016438,2]
[333957575,1722648649354,-1318.12,0.00016438,2]
[333957576,1722648649364,-854.73,0.00016438,2]
[333957577,1722648649374,-557.95,0.00016438,2]
[333957578,1722648649384,-1761.87,0.00016438,2]
[333957579,1722648649393,-697.05,0.00016438,2]
[333957580,1722648649403,-500.0,0.00016438,2]
[333957581,1722648649413,-1233.91,0.00016438,2]
[333957582,1722648649423,-500.0,0.00016438,2]
[333957583,1722648649436,-500.0,0.00016438,2]
[333957584,1722648649446,-500.0,0.00016438,2]
[333957585,1722648649455,-1771.73,0.00016438,2]
[333957586,1722648649465,-1398.18,0.00016438,2]
[333957587,1722648649474,-500.0,0.00016438,2]
[333957588,1722648649484,-852.23,0.00016438,2]
[333957589,1722648649494,-523.42,0.00016438,2]
[333957590,1722648649503,-1419.04,0.00016438,2]
[333957591,1722648649513,-566.3080574,0.00016438,2]
[333957592,1722648649522,-1488.92,0.00016438,2]
[333957593,1722648649532,-1761.34,0.00016438,2]
[333957594,1722648649543,-500.0,0.00016438,2]
[333957595,1722648649552,-500.0,0.00016438,2]
[333957596,1722648649561,-500.61,0.00016438,2]
[333957597,1722648649571,-500.0,0.00016438,2]
[333957598,1722648649580,-500.0,0.00016438,2]
[333957599,1722648649590,-1376.52,0.00016438,2]
[333957600,1722648649599,-1128.94,0.00016438,2]
[333957601,1722648649608,-1610.65,0.00016438,2]
[333957602,1722648649618,-1968.19,0.00016438,2]
[333957603,1722648649627,-500.0,0.00016438,2]
[333957604,1722648649637,-689.3,0.00016438,2]
[333957605,1722648649647,-500.0,0.00016438,2]
[333957606,1722648649657,-500.0,0.00016438,2]
[333957607,1722648649666,-500.0,0.00016438,2]
[333957608,1722648649678,-500.0,0.00016438,2]
[333957609,1722648649688,-500.0,0.00016438,2]
[333957610,1722648649698,-500.0,0.00016438,2]
[333957611,1722648649708,-500.0,0.00016438,2]
[333957612,1722648649718,-1247.82,0.00016438,2]
[333957613,1722648649728,-1503.79,0.00016438,2]
[333957614,1722648649738,-500.0,0.00016438,2]
[333957615,1722648649748,-574.52,0.00016438,2]
[333957616,1722648649758,-500.0,0.00016438,2]
[333957617,1722648649768,-529.93,0.00016438,2]
[333957618,1722648649777,-500.0,0.00016438,2]
[333957619,1722648649787,-500.0,0.00016438,2]
[333957620,1722648649797,-500.0,0.00016438,2]
[333957621,1722648649807,-1375.13,0.00016438,2]
[333957622,1722648649817,-3151.56,0.00016438,2]
[333957623,1722648649826,-500.0,0.00016438,2]
[333957624,1722648649836,-500.0,0.00016438,2]
[333957625,1722648649846,-524.6,0.00016438,2]
[333957626,1722648649856,-1119.12,0.00016438,2]
[333957627,1722648649866,-500.0,0.00016438,2]
[333957628,1722648649876,-500.0,0.00016438,2]
[333957629,1722648649886,-526.73,0.00016438,2]
[333957630,1722648649896,-1936.98,0.00016438,2]
[333957631,1722648649906,-500.0,0.00016438,2]
[333957632,1722648649916,-500.0,0.00016438,2]
[333957633,1722648649928,-500.0,0.00016438,2]
[333957634,1722648649938,-923.15,0.00016438,2]
[333957635,1722648649948,-524.59,0.00016438,2]
[333957636,1722648649958,-810.14,0.00016438,2]
[333957637,1722648649968,-732.32,0.00016438,2]
[333957638,1722648649978,-1520.4,0.00016438,2]
[333957639,1722648649993,-849.66,0.00016438,2]
[333957640,1722648650003,-500.0,0.00016438,2]
[333957641,1722648650014,-500.0,0.00016438,2]
[333957642,1722648650024,-500.0,0.00016438,2]
[333957643,1722648650035,-500.0,0.00016438,2]
[333957644,1722648650055,-500.0,0.00016438,2]
[333957645,1722648650068,-2266.86,0.00016438,2]
[333957646,1722648650080,-500.0,0.00016438,2]
[333957647,1722648650090,-1721.16,0.00016438,2]
[333957648,1722648650101,-500.0,0.00016438,2]
[333957649,1722648650111,-3192.59,0.00016438,2]
[333957650,1722648650121,-500.0,0.00016438,2]
[333957651,1722648650131,-500.0,0.00016438,2]
[333957652,1722648650142,-641.23514442,0.00016438,2]
[333957653,1722648650152,-500.0,0.00016438,2]
[333957654,1722648650162,-1287.54,0.00016438,2]
[333957655,1722648650173,-500.0,0.00016438,2]
[333957656,1722648650186,-655.0,0.00016438,2]
[333957657,1722648650196,-500.0,0.00016438,2]
[333957658,1722648650207,-1006.71,0.00016438,2]
[333957659,1722648650217,-1246.41,0.00016438,2]
[333957660,1722648650227,-1444.42,0.00016438,2]
[333957661,1722648650236,-500.0,0.00016438,2]
[333957662,1722648650246,-501.65,0.00016438,2]
[333957663,1722648650256,-500.0,0.00016438,2]
[333957664,1722648650267,-500.0,0.00016438,2]
[333957665,1722648650277,-650.47,0.00016438,2]
[333957666,1722648650287,-726.23,0.00016438,2]
[333957667,1722648650298,-500.0,0.00016438,2]
[333957668,1722648650309,-500.0,0.00016438,2]
[333957669,1722648650320,-500.0,0.00016438,2]
[333957670,1722648650330,-1866.46,0.00016438,2]
[333957671,1722648650340,-1742.42,0.00016438,2]
[333957672,1722648650350,-500.0,0.00016438,2]
[333957673,1722648650360,-500.0,0.00016438,2]
[333957674,1722648650370,-500.0,0.00016438,2]
[333957675,1722648650380,-500.0,0.00016438,2]
[333957676,1722648650390,-500.0,0.00016438,2]
[333957677,1722648650401,-500.0,0.00016438,2]
[333957678,1722648650410,-500.0,0.00016438,2]
[333957679,1722648650421,-500.0,0.00016438,2]
[333957680,1722648650433,-2052.54,0.00016438,2]
[333957681,1722648650443,-500.0,0.00016438,2]
[333957682,1722648650453,-1028.89,0.00016438,2]
[333957683,1722648650463,-500.0,0.00016438,2]
[333957684,1722648650473,-500.0,0.00016438,2]
[333957685,1722648650483,-1436.42,0.00016438,2]
[333957686,1722648650493,-609.98,0.00016438,2]
[333957687,1722648650503,-2643.83,0.00016438,2]
[333957688,1722648650513,-500.0,0.00016438,2]
[333957689,1722648650525,-1077.83,0.00016438,2]
[333957690,1722648650535,-500.0,0.00016438,2]
[333957691,1722648650547,-500.0,0.00016438,2]
[333957692,1722648650558,-823.15,0.00016438,2]
[333957693,1722648650568,-500.0,0.00016438,2]
[333957694,1722648650577,-1544.42,0.00016438,2]
[333957695,1722648650588,-1377.85,0.00016438,2]
[333957696,1722648650598,-500.0,0.00016438,2]
[333957697,1722648650608,-224.5564851,0.00016438,2]
[333957698,1722648650618,-878.49,0.00016438,2]
[333957699,1722648650628,-500.0,0.00016438,2]
[333957700,1722648650638,-500.0,0.00016438,2]
[333957701,1722648650648,-393.82488591,0.00016438,2]
[333957702,1722648650658,-500.0,0.00016438,2]
[333957703,1722648650668,-500.0,0.00016438,2]
[333957704,1722648650679,-500.0,0.00016438,2]
[333957705,1722648650689,-1647.92,0.00016438,2]
[333957706,1722648650699,-546.0,0.00016438,2]
[333957707,1722648650708,-500.0,0.00016438,2]
[333957708,1722648650718,-500.0,0.00016438,2]
[333957709,1722648650728,-500.0,0.00016438,2]
[333957710,1722648650738,-1471.0,0.00016438,2]
[333957711,1722648650748,-808.87,0.00016438,2]
[333957712,1722648650758,-1249.35,0.00016438,2]
[333957713,1722648650768,-1309.0,0.00016438,2]
[333957714,1722648650777,-500.0,0.00016438,2]
[333957715,1722648650787,-500.0,0.00016438,2]
[333957716,1722648650798,-536.83,0.00016438,2]
[333957717,1722648650807,-500.0,0.00016438,2]
[333957718,1722648650817,-500.0,0.00016438,2]
[333957719,1722648650827,-506.94,0.00016438,2]
[333957720,1722648650837,-569.52,0.00016438,2]
[333957721,1722648650846,-1556.47,0.00016438,2]
[333957722,1722648650856,-500.0,0.00016438,2]
[333957723,1722648650866,-520.38,0.00016438,2]
[333957724,1722648650875,-500.0,0.00016438,2]
[333957725,1722648650885,-500.0,0.00016438,2]
[333957726,1722648650895,-1181.48,0.00016438,2]
[333957727,1722648650905,-500.0,0.00016438,2]
[333957728,1722648650915,-500.0,0.00016438,2]
[333957729,1722648650924,-500.0,0.00016438,2]
[333957730,1722648650936,-500.0,0.00016438,2]
[333957731,1722648650946,-597.29,0.00016438,2]
[333957732,1722648650957,-500.0,0.00016438,2]
[333957733,1722648650969,-500.0,0.00016438,2]
[333957734,1722648650979,-500.0,0.00016438,2]
[333957735,1722648650989,-450.95355118,0.00016438,2]
[333957736,1722648651001,-500.0,0.00016438,2]
[333957737,1722648651011,-500.0,0.00016438,2]
[333957738,1722648651021,-500.0,0.00016438,2]
[333957739,1722648651031,-597.35,0.00016438,2]
[333957740,1722648651042,-1045.26,0.00016438,2]
[333957741,1722648651052,-500.0,0.00016438,2]
[333957742,1722648651062,-1439.16,0.00016438,2]
[333957743,1722648651072,-500.0,0.00016438,2]
[333957744,1722648651221,-908.75,0.00016438,2]
[333957745,1722648651230,-500.0,0.00016438,2]
[333957746,1722648651239,-1447.67,0.00016438,2]
[333957747,1722648651249,-500.0,0.00016438,2]
[333957748,1722648651258,-500.0,0.00016438,2]
[333957749,1722648651267,-561.76,0.00016438,2]
[333957750,1722648651277,-500.0,0.00016438,2]
[333957751,1722648651286,-500.0,0.00016438,2]
[333957752,1722648651295,-866.88,0.00016438,2]
[333957753,1722648651305,-500.0,0.00016438,2]
[333957754,1722648651314,-1064.15,0.00016438,2]
[333957755,1722648651324,-500.0,0.00016438,2]
[333957756,1722648651333,-500.0,0.00016438,2]
[333957757,1722648651342,-553.35,0.00016438,2]
[333957758,1722648651351,-500.0,0.00016438,2]
[333957759,1722648651361,-740.61,0.00016438,2]
[333957760,1722648651370,-500.0,0.00016438,2]
[333957761,1722648651379,-1112.49,0.00016438,2]
[333957762,1722648651389,-628.61,0.00016438,2]
[333957763,1722648651398,-500.0,0.00016438,2]
[333957764,1722648651408,-500.0,0.00016438,2]
[333957765,1722648651417,-1535.36,0.00016438,2]
[333957766,1722648651427,-500.0,0.00016438,2]
[333957767,1722648651437,-765.72,0.00016438,2]
[333957768,1722648651447,-500.0,0.00016438,2]
[333957769,1722648651456,-500.0,0.00016438,2]
[333957770,1722648651467,-1190.59,0.00016438,2]
[333957771,1722648651476,-1196.55,0.00016438,2]
[333957772,1722648651486,-500.0,0.00016438,2]
[333957773,1722648651495,-711.57,0.00016438,2]
[333957774,1722648651505,-500.0,0.00016438,2]
[333957775,1722648651514,-500.0,0.00016438,2]
[333957776,1722648651524,-621.82,0.00016438,2]
[333957777,1722648651534,-500.0,0.00016438,2]